Cogmind - Beta 17 @@@ ROGUE MODE // 2026.08.09 @ 09:27:39 Player: OBLIQUE Result: Destroyed by Y-64 Sentinel with Wave Gun Performance ------------- Evolutions (5) 2500 Regions Visited (7) 1400 Robots Destroyed (42) 210 Value Destroyed (2471) 2471 Prototype IDs (40) 800 Alien Tech Used (0) 0 Bonus (2967) 2967 TOTAL SCORE: 10348 Bonus ------- High Alert Combat Kills 454 Follower Combat Kills 1013 Entered Garrisons 200 Used RIF Installer 500 Registered with UFD 300 Met Optimus in HQ 500 Cogmind --------- Core Integrity 0/1000 Matter 102/300 Energy 100/100 System Corruption 12% Temperature Cool (9) Movement Flying (40) Location -5/Factory Parts ------- > --- POWER (1) -------- (None) > --- PROPULSION (4) --- Biomechanical Wings > --- UTILITY (9) ------ Improved System Shield > --- WEAPON (3) ------- (None) > --- INVENTORY (5) ---- Flightbrick Peak State ------------ > --- POWER ------------ Hybrid Fission Core > --- PROPULSION ------- Carbon-fiber Leg Carbon-fiber Leg Advanced VSS Leg Advanced VSS Leg > --- UTILITY ---------- Advanced Cooling System Large Storage Unit Energy Well Energy Well Enhanced Optical Array Precision Matter Filter Improved Light Armor Plating Graphene Brace Advanced Focal Shield > --- WEAPON ----------- Gatling Laser Heavy Gatling Laser Railgun > --- INVENTORY -------- Light Angular Momentum Engine Light Fission Core Flightbrick Advanced Cooling System Quantum Capacitor Relay Coupler [Grunt] Relay Coupler [Sentry] Relay Coupler [Sentry] KE Penetrator Heavy Linear Accelerator [Rating: 98] Favorites ----------- Power Ion Engine Engine Ion Engine Power Core Hybrid Fission Core Reactor Fusion Reactor Propulsion Light Treads Treads Light Treads Leg Carbon-fiber Leg Hover Unit Hover Unit Flight Unit Biomechanical Wings Utility Large Storage Unit Device Self-contained Transmogrifier Storage Large Storage Unit Processor Enhanced Optical Array Hackware Improved System Shield Protection Light Armor Plating Weapon Makeshift Laser Energy Gun Makeshift Laser Energy Cannon Plasma Cannon Ballistic Gun KE Penetrator Ballistic Cannon Light Cannon Launcher Heavy Missile Launcher Special Weapon Plasma Flamer Impact Weapon Shock Maul Slashing Weapon Chainsword Build | -11 -10 -10 -7 -7 -5 -5 -5 ------- Run | Yrd Mat Sub Rec Scr Fac Gar Fac Slots Evolved 10 | . . . . . 10 . . Power . | . . . . . . . . Propulsion 2 | . . . . . 2 . . Utility 7 | . . . . . 7 . . Weapon 1 | . . . . . 1 . . Parts Attached 76 | 6 2 11 . 5 10 23 19 Power 9 | 1 . 3 . 1 . 2 2 Engine 5 | 1 . 3 . 1 . . . Core 4 | . . . . . . 2 2 Reactor . | . . . . . . . . Propulsion 20 | 2 . 3 . . 2 7 6 Treads 7 | 2 . 3 . . 2 . . Leg 12 | . . . . . . 7 5 Wheel . | . . . . . . . . Hover . | . . . . . . . . Flight 1 | . . . . . . . 1 Utility 31 | 1 2 3 . 2 7 8 8 Device 16 | . . 1 . 1 4 5 5 Storage 5 | 1 1 . . 1 . 2 . Processor 2 | . . . . . 2 . . Hackware 1 | . . . . . . . 1 Protection 7 | . 1 2 . . 1 1 2 Artifact . | . . . . . . . . Weapon 16 | 2 . 2 . 2 1 6 3 Energy Gun 6 | 2 . 1 . . . 3 . Energy Cannon 1 | . . . . 1 . . . Ballistic Gun 5 | . . . . 1 . 2 2 Ballistic Cannon 4 | . . 1 . . 1 1 1 Launcher . | . . . . . . . . Special Weapon . | . . . . . . . . Impact Weapon . | . . . . . . . . Slashing Weapon . | . . . . . . . . Piercing Weapon . | . . . . . . . . Special Melee Weapon . | . . . . . . . . Unidentified Prototypes 4 | . . 1 . . . . 3 Parts Lost 33 | . . 3 . . . 14 16 Power 1 | . . . . . . 1 . Propulsion 11 | . . 1 . . . 4 6 Utility 14 | . . 2 . . . 5 7 Weapon 7 | . . . . . . 4 3 Highest Loss Streak 11 | . . 2 . . . 11 10 To Critical Strikes . | . . . . . . . . Average Backups 8 | 2 9 11 9 7 6 8 8 Power . | . 1 1 . . . 1 1 Propulsion 1 | . 3 3 3 1 1 1 1 Utility 4 | . 3 3 4 4 1 4 5 Weapon 1 | . 1 3 2 . 1 1 1 Tool/Special . | . . . . . . . . Unused Backups 54 | 2 . . . 29 . 14 9 Power 4 | . . . . 1 . 2 1 Propulsion 11 | 2 . . . 6 . 2 1 Utility 25 | . . . . 14 . 5 6 Weapon 9 | . . . . 4 . 4 1 Tool/Special 5 | . . . . 4 . 1 . Average Slot Usage (%) 93 | . 93 100 100 92 93 86 79 Engine 7 | . 13 14 14 6 . . . Core 2 | . . . . 4 . 3 4 Reactor 1 | . . . . 3 5 . . Treads 20 | . 28 27 28 20 22 3 . Leg 1 | . . . . . . 17 15 Device 12 | . . 6 14 13 28 22 19 Storage 13 | . 14 14 14 13 5 8 14 Processor 1 | . . . . . 10 8 3 Protection 2 | . 8 7 . . . 2 3 Energy Gun 10 | . 28 16 9 7 . 8 4 Ballistic Gun 4 | . . . . 7 . 3 6 Ballistic Cannon 3 | . . 9 . 1 16 2 1 Launcher 4 | . . . . 7 . . . Slashing Weapon 1 | . . . 18 1 . . . Peak Build Rating 98 | 6 8 34 34 54 87 94 98 Average Rating 39 | 5 7 19 33 41 81 76 75 On Entrance 38 | . 6 8 33 34 48 87 94 Avg Prop Armor Cover (%) 23 | . . . . 41 . 12 3 Naked Turns 70 | . . . . . . . 70 Heaviest Build 97 | 13 33 38 37 57 69 69 97 Greatest Support 126 | 40 40 56 58 75 126 126 72 Greatest Overweight (x) 3 | . . . . 1 . 1 3 Average Overweight (x) . | . . . . . . . . Largest Inventory Capacity 15 | 8 15 15 15 15 15 15 15 Average Capacity 14 | 7 14 15 15 14 15 15 13 Most Carried 15 | 4 12 15 12 15 14 15 15 Average Carried 11 | 2 9 13 12 10 9 12 13 Final Capacity 15 | 8 15 15 15 15 15 15 5 Final Carried 15 | 4 12 12 12 15 10 15 4 Transmogrified Parts 164 | . . 19 2 143 . . . Integrity Recovered 329 | . . 88 4 237 . . . Class Distribution -------------------- 86% | Mutant 4% | Scavenger-Tank 3% | Commander-Tank 3% | Derelict-Skirmisher Dominant Class ---------------- Mutant | -10/Materials Mutant | -10/Subcaves Mutant | -7/Recycling Mutant | -7/Scraptown Derelict-Skirmisher | -5/Factory Scavenger-Tank | -5/Garrison Commander-Tank | -5/Factory Resources | -11 -10 -10 -7 -7 -5 -5 -5 ----------- Run | Yrd Mat Sub Rec Scr Fac Gar Fac Matter Collected 2482 | 207 78 583 181 164 112 633 524 Remotely . | . . . . . . . . Salvage Created 1632 | . . 305 . . . 567 760 Parts 58 | . . 21 . . . 16 21 Haulers Intercepted . | . . . . . . . . Recyclers Shooed . | . . . . . . . . Parts Field Recycled . | . . . . . . . . Retrieved Matter . | . . . . . . . . Parts Self-Destructed 5 | . . 5 . . . . . Prevented . | . . . . . . . . Parts Restored . | . . . . . . . . Kills | -11 -10 -10 -7 -7 -5 -5 -5 ------- Run | Yrd Mat Sub Rec Scr Fac Gar Fac Combat Hostiles Destroyed 36 | . . 9 . . . 13 14 Guns 19 | . . 6 . . . 9 4 Cannons 15 | . . 3 . . . 2 10 Classes Destroyed 14 | . . 4 . . . 5 5 Builder 1 | . . . . . . . 1 Recycler 1 | . . . . . . . 1 Turret 2 | . . 2 . . . . . Watcher 1 | . . . . . . 1 . Swarmer 3 | . . 3 . . . . . Saboteur 1 | . . . . . . 1 . Grunt 11 | . . . . . . 4 7 Brawler 3 | . . . . . . . 3 Duelist 3 | . . . . . . 3 . Protector 1 | . . . . . . . 1 Sentry 3 | . . 1 . . . 1 1 Hunter 5 | . . . . . . 4 1 Programmer 2 | . . . . . . . 2 Subdweller 5 | . . 5 . . . . . Best Kill Streak 7 | . . 3 . . . 4 7 Combat Bots Only 7 | . . 3 . . . 4 7 Max Kills in Single Turn 2 | . . 1 . . . 1 2 Gunslinging . | . . . . . . . . Exploded . | . . . . . . . . Melee . | . . . . . . . . Uniques/NPCs Destroyed . | . . . . . . . . Combat | -11 -10 -10 -7 -7 -5 -5 -5 -------- Run | Yrd Mat Sub Rec Scr Fac Gar Fac Hostile Shots Fired 542 | . 22 73 . . . 209 238 Missed 150 | . 9 27 . . . 37 77 Hits 392 | . 13 46 . . . 172 161 Melee 5 | . . . . . . 3 2 Projectile 387 | . 13 46 . . . 169 159 Critical Strikes 8 | . . . . . . 4 4 Actively Blocked 5 | . . . . . . 4 1 Part Disruptions 1 | . . . . . . . 1 Damage Taken 7264 | . 152 775 . . . 3191 3146 Core 1083 | . 10 63 . . . 442 568 Absorbed by Shields . | . . . . . . . . Redirected to Shielding 102 | . . . . . . 102 . Ignored by Resistances 63 | . . . . . . 49 14 Core Remaining (%) 85 | 100 . . . 70 . . . Volleys Fired 275 | . . 161 . . 1 56 57 Largest 3 | . . 2 . . 1 3 3 Hottest 215 | . . 80 . . 44 215 215 Shots Fired 519 | . . 271 . . 1 126 121 Gun 291 | . . 133 . . . 69 89 Cannon 226 | . . 136 . . 1 57 32 Launcher 2 | . . 2 . . . . . Special . | . . . . . . . . Kinetic 276 | . . 136 . . 1 78 61 Thermal 241 | . . 133 . . . 48 60 Explosive . | . . . . . . . . Electromagnetic 2 | . . 2 . . . . . Robot Hit Streak 19 | . . 10 . . . 18 19 Robot Miss Streak 7 | . . 3 . . . 5 7 Penetration Max 1 | . . . . . . 1 1 Secondary Targets 1 | . . . . . . 1 . Max Gunslinging Chain 1 | . . . . . . 1 . Shots Hit Robots 201 | . . 40 . . . 76 85 Core Hits 117 | . . 17 . . . 36 64 Critical Kills 1 | . . . . . . 1 . Critical Parts Destroyed 10 | . . . . . . 10 . Critical Strikes 21 | . . 5 . . . 15 1 Burn 4 | . . 3 . . . 1 . Destroy 14 | . . . . . . 14 . Blast 3 | . . 2 . . . . 1 Melee Attacks 1 | . . 1 . . . . . Impact . | . . . . . . . . Slashing 1 | . . 1 . . . . . Piercing . | . . . . . . . . Sneak Attacks . | . . . . . . . . Combat Hostiles . | . . . . . . . . Follow-up Attacks . | . . . . . . . . Damage Inflicted 6834 | . 13 724 . . . 2194 3903 Guns 3688 | . . 372 . . . 1414 1902 Cannons 3066 | . . 308 . . . 757 2001 Explosions . | . . . . . . . . Melee 44 | . . 44 . . . . . Ramming 36 | . 13 . . . . 23 . Kinetic 3749 | . . 308 . . . 995 2446 Thermal 3005 | . . 372 . . . 1176 1457 Explosive . | . . . . . . . . Electromagnetic . | . . . . . . . . Impact . | . . . . . . . . Slashing 44 | . . 44 . . . . . Piercing . | . . . . . . . . Highest Corruption 12 | . . . . . . . 12 Average Corruption 9 | . . . . . . . 9 Corruption Purged . | . . . . . . . . Corruption Blocked . | . . . . . . . . Effects 21 | . . . . . . . 21 Message Errors 9 | . . . . . . . 9 Matter Fused 7 | . . . . . . . 7 Energy Discharges 2 | . . . . . . . 2 Parts Rejected 1 | . . . . . . . 1 Parts Fused 1 | . . . . . . . 1 Weapon Failures 1 | . . . . . . . 1 Overload Shots 14 | . . 14 . . . . . Overflow Damage 160 | . . . . . . . 160 Projectiles 160 | . . . . . . . 160 Explosions . | . . . . . . . . Melee . | . . . . . . . . Knockbacks 15 | . . 4 . . . 4 7 Impact . | . . . . . . . . Kinetic 14 | . . 4 . . . 4 6 Secondary 1 | . . . . . . . 1 Self-Inflicted Damage 10 | . . 10 . . . . . Shots 2 | . . 2 . . . . . Rammed 7 | . 3 . . . . 4 . Targets Rammed 8 | . 3 . . . . 5 . Kicked . | . . . . . . . . Crushed 1 | . . . . . . 1 . Highest Temperature 327 | . 7 8 . . . 327 327 Average Temperature 92 | . 7 5 . . . 93 94 Received Heat Transfer 1407 | . 87 135 . . . 324 861 Effects 1 | . . . . . . . 1 Interference 1 | . . . . . . . 1 Siege Activations . | . . . . . . . . Martial Activations . | . . . . . . . . Shielding Activations . | . . . . . . . . Robots Disrupted . | . . . . . . . . Combat Hostiles . | . . . . . . . . Robots Corrupted . | . . . . . . . . Combat Hostiles . | . . . . . . . . Parts Fried . | . . . . . . . . Impact Corruptions . | . . . . . . . . Robots Melted 2 | . . . . . . 2 . Combat Hostiles 2 | . . . . . . 2 . Parts Melted 10 | . . . . . . 7 3 Heat Transferred 6112 | . . 1062 . . . 2158 2892 Parts Sabotaged . | . . . . . . . . Parts Stolen . | . . . . . . . . Parts Stripped . | . . . . . . . . Power Chain Reactions . | . . . . . . . . Alert | -11 -10 -10 -7 -7 -5 -5 -5 ------- Run | Yrd Mat Sub Rec Scr Fac Gar Fac Maximum Alert Level 3 | . . . . . . 3 3 Low Security (%) 44 | 100 100 . 100 . 100 13 . Level 1 10 | . . . . . . 26 . Level 2 24 | . . . . . . 26 67 Level 3 20 | . . . . . . 34 32 Level 4 . | . . . . . . . . Level 5 . | . . . . . . . . High Security . | . . . . . . . . Max Security . | . . . . . . . . Peak Influence 908 | . 14 . 16 . 24 849 908 Initial 445 | . . . 16 . . 9 445 Average 339 | . . . 4 . 1 504 661 Influence Increases 2508 | . 32 285 . . 40 1020 1131 Destroy 0b10 Robot/C 1140 | . . 120 . . . 460 560 Destroy 0b10 Robot/NC 20 | . . . . . . 5 15 Destroy Leader 140 | . . . . . . 40 100 Allied During Kill 365 | . . . . . . 103 262 Successful Hack 90 | . 32 . . . 38 14 6 Disable Machine 30 | . . . . . . . 30 Anti-Garrison Action 250 | . . . . . . 250 . Destroy Structure 143 | . . . . . 2 103 38 Lose Combat Pursuer 330 | . . 165 . . . 45 120 Influence Decreases 1600 | . 32 250 35 . 26 185 1072 Entered New Map 428 | . . . 19 . . 5 404 Time Decay 672 | . 32 230 16 . 26 . 368 Lost Part 320 | . . 20 . . . 140 160 Lost Ally 180 | . . . . . . 40 140 Squads Dispatched 9 | . 1 . . . 1 . 7 Investigation . | . . . . . . . . Extermination 3 | . . . . . 1 . 2 Reinforcement 4 | . 1 . . . . . 3 Assault 2 | . . . . . . . 2 Garrison . | . . . . . . . . Intercept . | . . . . . . . . Searches Triggered . | . . . . . . . . Construction Impeded . | . . . . . . . . Haulers Reinforced 1 | . . . . . . . 1 Active Scanning Responses . | . . . . . . . . Cargo Convoy Interrupts . | . . . . . . . . Stealth | -11 -10 -10 -7 -7 -5 -5 -5 --------- Run | Yrd Mat Sub Rec Scr Fac Gar Fac Distress Signals 1 | . 1 . . . . . . Communications Jammed . | . . . . . . . . Distress Signals . | . . . . . . . . Times Spotted 96 | . 7 20 . . 1 26 42 Peak Tracking Total 7 | . 4 6 . . 1 7 7 Tactical Retreats 16 | . . 9 . . . 3 4 Traps | -11 -10 -10 -7 -7 -5 -5 -5 ------- Run | Yrd Mat Sub Rec Scr Fac Gar Fac Traps Triggered 6 | . 1 5 . . . . . Indirectly . | . . . . . . . . Trap Hack Attempts . | . . . . . . . . Triggered . | . . . . . . . . Disarmed . | . . . . . . . . Reprogrammed . | . . . . . . . . Reused . | . . . . . . . . Traps Extracted . | . . . . . . . . Installed . | . . . . . . . . Triggered . | . . . . . . . . Machines | -11 -10 -10 -7 -7 -5 -5 -5 ---------- Run | Yrd Mat Sub Rec Scr Fac Gar Fac Machines Disabled 8 | . . 2 . . . 4 2 Max in Single Turn 2 | . . 1 . . . 2 . Garrison Relay 2 | . . . . . . 2 . Phase Generator 1 | . . . . . . 1 . Machines Repaired . | . . . . . . . . Machines Dismantled . | . . . . . . . . Machines Sabotaged . | . . . . . . . . Overloaded Fab Kills . | . . . . . . . . Hacking | -11 -10 -10 -7 -7 -5 -5 -5 --------- Run | Yrd Mat Sub Rec Scr Fac Gar Fac Machines Accessed 17 | . 6 1 . 3 2 3 2 Terminals 12 | . 6 . . . 1 3 2 Fabricators . | . . . . . . . . Repair Stations . | . . . . . . . . Recycling Units . | . . . . . . . . Scanalyzers . | . . . . . . . . Garrison Access 1 | . . . . . 1 . . Total Hacks 61 | . 19 1 . 26 3 6 6 Successful 43 | . 12 1 . 26 2 1 1 Failed 18 | . 7 . . . 1 5 5 Catastrophic 2 | . 1 . . . 1 . . Database Lockouts . | . . . . . . . . Manual 13 | . 9 . . . 1 . 3 Terminals 33 | . 19 . . . 2 6 6 Fabricators . | . . . . . . . . Repair Stations . | . . . . . . . . Recycling Units . | . . . . . . . . Scanalyzers . | . . . . . . . . Garrison Access 1 | . . . . . 1 . . Terminal Hacks 38 | . 9 1 . 26 1 1 . Record 26 | . . . . 26 . . . Robot Analysis 3 | . 3 . . . . . . Prototype ID Bank 2 | . 2 . . . . . . Terminal Index 1 | . . . . . 1 . . Locate Traps 1 | . 1 . . . . . . Patrol Status 1 | . 1 . . . . . . Zone Layout 2 | . 2 . . . . . . Garrison Registry 1 | . . . . . . 1 . Proto ID Catalog 1 | . . 1 . . . . . Fabricator Hacks . | . . . . . . . . Repair Station Hacks . | . . . . . . . . Recycling Unit Hacks . | . . . . . . . . Scanalyzer . | . . . . . . . . Garrison Access Hacks 1 | . . . . . 1 . . Unlock Access 1 | . . . . . 1 . . Unauthorized Hacks 4 | . 3 . . . . . 1 Terminals 4 | . 3 . . . . . 1 Assimilate 1 | . . . . . . . 1 Botnet 3 | . 3 . . . . . . Fabricators . | . . . . . . . . Repair Stations . | . . . . . . . . Recycling Units . | . . . . . . . . Scanalyzers . | . . . . . . . . Garrison Access . | . . . . . . . . Data Cores Recovered . | . . . . . . . . Used . | . . . . . . . . Hacking Detections 12 | . 6 . . . 1 3 2 Full Trace Events . | . . . . . . . . Feedback Events . | . . . . . . . . Feedback Blocked . | . . . . . . . . Robot Schematics Acquired . | . . . . . . . . Robots Built . | . . . . . . . . Authchips . | . . . . . . . . Time . | . . . . . . . . Total Robot Build Rating . | . . . . . . . . Part Schematics Acquired . | . . . . . . . . Parts Built . | . . . . . . . . Authchips . | . . . . . . . . Time . | . . . . . . . . Total Part Build Rating . | . . . . . . . . Part Studies Acquired . | . . . . . . . . Parts Repaired . | . . . . . . . . Time . | . . . . . . . . Parts Recycled . | . . . . . . . . Recycled Matter . | . . . . . . . . Retrieved Matter . | . . . . . . . . Retrieved Components . | . . . . . . . . Parts Scanalyzed . | . . . . . . . . Part Schematics Acquired . | . . . . . . . . Parts Damaged . | . . . . . . . . Bothacking | -11 -10 -10 -7 -7 -5 -5 -5 ------------ Run | Yrd Mat Sub Rec Scr Fac Gar Fac Used RIF Installer 1 | . . . . . . 1 . Robots Hacked . | . . . . . . . . Non-combat . | . . . . . . . . Combat . | . . . . . . . . Robot Hacks Applied . | . . . . . . . . Relay Couplers Released 7 | . . . . . . 7 . Machine Destruction 7 | . . . . . . 7 . Fabnet Peak Effective % . | . . . . . . . . Robots Rewired 8 | . . . . . . 8 . Allies Hacked 1 | . . . . . . . 1 Hacks Repelled . | . . . . . . . . Allies | -11 -10 -10 -7 -7 -5 -5 -5 -------- Run | Yrd Mat Sub Rec Scr Fac Gar Fac Total Allies 12 | . . . . 1 . 11 . Largest Group 10 | . . . . 1 1 10 10 Highest-Rated Group 477 | . . . . 72 72 477 477 Highest-Rated Ally 95 | . . . . 72 72 95 60 Initial UFD Resources 39 | . . . . . 39 39 39 Total Orders . | . . . . . . . . Ally Attacks 141 | . . . . . . 49 92 Total Damage 4176 | . . . . . . 1558 2618 Kills 26 | . . . . . . 10 16 Allies Corrupted 1 | . . . . . . . 1 Allies Melted . | . . . . . . . . Intel | -11 -10 -10 -7 -7 -5 -5 -5 ------- Run | Yrd Mat Sub Rec Scr Fac Gar Fac Active Infowar (turns) 3049 | . . . . 283 547 1496 723 Optics 2606 | . . . . . 544 1496 566 Sensors 1057 | . . . . 283 547 227 . Terrain 781 | . . . . . 543 238 . Traps 2437 | . . . . . 541 1200 696 Spoofing 272 | . . . . . . . 272 Jamming 678 | . . . . . 540 138 . Robot Analysis Total 3 | . 3 . . . . . . Derelict Logs Recovered 1 | . . 1 . . . . . Drone Launches . | . . . . . . . . Drone Recoveries . | . . . . . . . . Exploration | -11 -10 -10 -7 -7 -5 -5 -5 ------------- Run | Yrd Mat Sub Rec Scr Fac Gar Fac Turns Passed 19691 | 105 795 5223 95 10575 547 1496 855 Spaces Moved 7439 | 58 482 1696 60 3764 203 727 449 Core 190 | 2 . . . 87 . . 101 Treads 6256 | 56 482 1696 60 3677 203 82 . Legs 913 | . . . . . . 645 268 Wheels . | . . . . . . . . Hover . | . . . . . . . . Flight 80 | . . . . . . . 80 Fastest Speed 40 | 50 160 152 160 50 152 105 40 Average Speed 153 | 156 160 159 160 157 152 128 128 Slowest Speed 360 | 160 160 160 160 255 152 225 360 Overloaded Moves . | . . . . . . . . Propulsion Burnouts . | . . . . . . . . Robots Hopped 1 | . . . . . . . 1 Potential Cave-ins 1 | . . 1 . . . . . Cave-ins Triggered . | . . . . . . . . Exploration Rate (%) 46 | 4 80 97 12 89 6 64 18 Regions Visited 7 Branch Regions 3 Pre-discovered Areas 5 | . . 1 . 4 . . . Known Exits Taken 2 | . . . . 1 1 . . Unknown Exits Taken 4 | 1 1 1 1 . . . . Scrap Searched 10 | . . . . 10 . . . Spaces Dug 13 | . . 12 . . 1 . . Terrain Destroyed 97 | . . 12 . . 1 72 12 Melee . | . . . . . . . . Projectile 30 | . . 12 . . 1 5 12 AOE 67 | . . . . . . 67 . Terrain Rammed . | . . . . . . . . Walls Destroyed . | . . . . . . . . Machines Disabled . | . . . . . . . . Actions | -11 -10 -10 -7 -7 -5 -5 -5 --------- Run | Yrd Mat Sub Rec Scr Fac Gar Fac Total 15196 | 71 503 3935 59 8428 440 1177 583 Wait 7051 | . 8 2052 . 4531 223 197 40 Move 7430 | 57 481 1695 59 3763 202 726 447 Hop 1 | . . . . . . . 1 Pick Up 105 | 6 7 5 . 63 4 15 5 Fast Attach 35 | 6 3 1 . 3 1 10 11 Attach 25 | . . 4 . 2 9 6 4 Detach 9 | . 1 2 . 5 . 1 . Swap 23 | . . 6 . 1 . 8 8 Drop 95 | 2 . 8 . 60 . 15 10 Fire 275 | . . 161 . . 1 56 57 Melee 1 | . . 1 . . . . . Ram . | . . . . . . . . Kick . | . . . . . . . . Crush 8 | . 3 . . . . 5 . Escape Stasis . | . . . . . . . . Rewire 138 | . . . . . . 138 . Trap . | . . . . . . . . Miscellaneous . | . . . . . . . . Route ------- -11/Scrapyard -10/Materials (discovered 5 exits: [*Mat x2] / [*Min x2] / *Sub) -10/Subcaves (discovered 4 exits: [*Mat x2] / *Rec / *Scr) -7/Recycling -7/Scraptown (discovered 2 exits: *Fac x2) -5/Factory (discovered 7 exits: Fac x4 / Upp x2 / Gar) -5/Garrison (discovered 3 exits: *Fac x3) -5/Factory (discovered 1 exit: *Upp) History --------- Turn | Location | Event 24 | -11/Scrapyard | Discovered new exit (range 15) 106 | -11/Scrapyard | Entered Materials 107 | -10/Materials | Met a group of wandering Federalists 202 | -10/Materials | Discovered new exit (range 16) 295 | -10/Materials | Discovered new exit (range 12) 300 | -10/Materials | Build established: Mutant 321 | -10/Materials | Discovered new exit (range 6) 546 | -10/Materials | Discovered new exit (range 13) 571 | -10/Materials | Discovered new exit (range 16) 901 | -10/Materials | Entered Subcaves 902 | -10/Subcaves | Continued accompanying wandering Federalists (6) 914 | -10/Subcaves | Learned Materials trap positions 1111 | -10/Subcaves | A swath of the cavern ceiling suddenly collapsed 1133 | -10/Subcaves | Wandering Federalist uncovered a shortcut to Scraptown 1571 | -10/Subcaves | Discovered new exit (range 4) 1572 | -10/Subcaves | Shifting Twisted Machinery released Mak. Laser 1574 | -10/Subcaves | Shifting Twisted Machinery released Sub. Optics 2010 | -10/Subcaves | Learned location of Zion (-7) 2010 | -10/Subcaves | Met a Zionite searching for "candidates" 2211 | -10/Subcaves | Discovered new exit (range 16) 2360 | -10/Subcaves | A swath of the cavern ceiling suddenly collapsed 2557 | -10/Subcaves | Discovered new exit (range 7) 2652 | -10/Subcaves | Visited 4L-MR0's lab 2673 | -10/Subcaves | Found Flightbrick 3652 | -10/Subcaves | Found Prototype Device 3652 | -10/Subcaves | Identified Sfc. Transmogrifier 5900 | -10/Subcaves | Ambushed by Subdweller buried in earth 6124 | -10/Subcaves | Entered Recycling 6182 | -7/Recycling | Scanned before Scraplab entrance 6204 | -7/Recycling | Entered Scraplab 6217 | -7/Recycling | Discovered new exit (range 2) 6219 | -7/Recycling | Entered Scraptown 6442 | -7/Scraptown | Discovered new exit (range 11) 6587 | -7/Scraptown | Visited IN-MT5's Study 6619 | -7/Scraptown | Visited Spacefarers 6634 | -7/Scraptown | Visited Red Mages 6717 | -7/Scraptown | Visited Assassins FH 6770 | -7/Scraptown | Visited Cyclists 6808 | -7/Scraptown | Visited Bundlers 6882 | -7/Scraptown | Visited Cave Peace 6922 | -7/Scraptown | Visited UFD Registry 6925 | -7/Scraptown | Registered with UFD as "Flexishell" 6963 | -7/Scraptown | Visited Observation Area 6986 | -7/Scraptown | Visited Junk Repository 7029 | -7/Scraptown | Visited Scrap Suit Storage 7058 | -7/Scraptown | Visited Botcube Research 7082 | -7/Scraptown | Visited Supply Room 7112 | -7/Scraptown | Visited Research Penetration Think Tank 7219 | -7/Scraptown | Visited Cartography Club 7245 | -7/Scraptown | Visited Junk Repository 7279 | -7/Scraptown | Visited Science Testing Area 7309 | -7/Scraptown | Visited DA-N13 Charitable Foundation 7323 | -7/Scraptown | Found DCF Scrap (31 items) 8227 | -7/Scraptown | Entered Cyclist Reading Room 8760 | -7/Scraptown | Found Scrap Suit 10578 | -7/Scraptown | Learned location of Cetus (-6) 10578 | -7/Scraptown | Learned location of Quarantine (-3) 10578 | -7/Scraptown | Learned 16 Research zone layouts 10578 | -7/Scraptown | Learned 4 Access zone layouts 10578 | -7/Scraptown | Learned 8 Access zone layouts 10578 | -7/Scraptown | Learned 20 Lower Caves zone layouts 10578 | -7/Scraptown | Learned 16 Upper Caves zone layouts 10578 | -7/Scraptown | Learned 20 Upper Caves zone layouts 10578 | -7/Scraptown | Learned 24 Upper Caves zone layouts 10578 | -7/Scraptown | Learned 8 Proximity Caves zone layouts 10578 | -7/Scraptown | Learned 12 Proximity Caves zone layouts 10578 | -7/Scraptown | Learned 4 Hub_04(d) zone layouts 10578 | -7/Scraptown | Learned Research emergency access door positions 10578 | -7/Scraptown | Learned location of 1 exit from Factory 10578 | -7/Scraptown | Learned location of 2 exits from Factory 10578 | -7/Scraptown | Learned location of 2 exits from Lower Caves 10578 | -7/Scraptown | Identified exit to Factory 10994 | -7/Scraptown | Found Botcube 11014 | -7/Scraptown | Botcube activated 11034 | -7/Scraptown | Botcube completed mutation into treaded form, armed with 2 cannons 16706 | -7/Scraptown | Met Optimus 16706 | -7/Scraptown | Accepted into 0bPrime 16794 | -7/Scraptown | Entered Factory 16794 | -5/Factory | Accompanied by 1 ally 16794 | -5/Factory | Evolved 10 slots: Propulsion x2, Utility x7, Weapon x1 16795 | -5/Factory | Identified exit to Factory 16796 | -5/Factory | Identified exit to Upper Caves 17089 | -5/Factory | Build established: Derelict-Skirmisher 17318 | -5/Factory | Identified exit to Garrison 17341 | -5/Factory | Entered Garrison 17341 | -5/Garrison | Accompanied by 1 ally 17403 | -5/Garrison | Phase Generator disabled 17442 | -5/Garrison | Triggered checkpoint 17454 | -5/Garrison | Discovered new exit (range 65) 17454 | -5/Garrison | Discovered new exit (range 53) 17454 | -5/Garrison | Discovered new exit (range 28) 17471 | -5/Garrison | Spotted B-75 Beast 17610 | -5/Garrison | Lost 11 parts (1p4n2u4w) 17617 | -5/Garrison | Found Botcube 17638 | -5/Garrison | Botcube activated 17654 | -5/Garrison | Botcube completed mutation into legged form, armed with 1 gun 17666 | -5/Garrison | Allies destroyed B-75 Beast 17857 | -5/Garrison | Found embedded Infiltrators 17857 | -5/Garrison | Triggered checkpoint 17918 | -5/Garrison | Installed Relay Interface Framework 17928 | -5/Garrison | Garrison Relay disabled 18001 | -5/Garrison | Triggered checkpoint 18097 | -5/Garrison | Build established: Scavenger-Tank 18137 | -5/Garrison | Triggered checkpoint 18159 | -5/Garrison | Garrison Relay disabled 18181 | -5/Garrison | Triggered checkpoint 18707 | -5/Garrison | Triggered checkpoint 18730 | -5/Garrison | Found Quantum Capacitor 18837 | -5/Garrison | Entered Factory 18837 | -5/Factory | Accompanied by 10 allies 18878 | -5/Factory | P-70 Sage assimilated allied OU-5OS(x) 18885 | -5/Factory | Build established: Commander-Tank 18897 | -5/Factory | Core integrity fell below 50% 19092 | -5/Factory | Lost 3 parts (2n1u) 19137 | -5/Factory | First assault squad dispatched 19404 | -5/Factory | System corruption reached 10% 19431 | -5/Factory | Spotted B-75 Beast 19488 | -5/Factory | Lost 3 allies 19512 | -5/Factory | Destroyed 7 combat bots 19569 | -5/Factory | Core integrity fell below 20% 19571 | -5/Factory | Released all parts (8) 19599 | -5/Factory | Lost 10 parts (3n5u2w) 19668 | -5/Factory | Discovered exit to Upper Caves (range 16) 19692 | -5/Factory | Destroyed by Y-64 Sentinel with Wave Gun Last Messages --------------- 19572_ Acquired 3 matter. 19591_ WI5AM9OCOOZ<&AQCMCZXREP1L:ZLW 19610_ Acquired 41 matter. 19611_ R-10 Processor collects Imp. Carbon-fiber Leg. 19616_ System corrupted: Matter fused (-7). 19641_ Acquired Prototype Flight Unit. 19641_ Identified Biomechanical Wings. 19644_ Acquired Imp. System Shield. 19654_ System corrupted: Energy discharge (-40). 19657_ Detecting nearby Garrison Access. 19662_ U-05 Engineer works on Assembly Bed. 19668_ EXIT=FOUND: UPPER CAVES 19669_ System corrupted: Matter fused (-8). 19669_ Slug penetrates Wall. 19671_ ALERT: Potential suspicious activity detected, Programmers report to Factory Zone 4L. 19679_ K-01 Serf cleans the Power Conduit. 19685_ Slug penetrates Power Conduit. Map ----- +----------------------------------------------------+ | ?????????????????????????????????????????????????? | | ?????????????????????????????????????????????????? | | ?????????????????????????????????????????????????? | | ?????????????????????????????????????????????????? | | ?????????????????????????????????????????????????? | | ?????????????????????????????????????????????????? | | ?????????????????????????????????????????????????? | | ?????????????????????????????????????????????????? | | ?????????????????????????????????????????????????? | | ?????????????????????????????????????????????????? | | ???????????????????????????????????? ?????????? | | ???????????????????????????????????? ?#?????? | | ???????????????????????????????????? [ #????? | | ???????????????????????????????????? #????? | | ??????????????????????????????????? #????? | | ??????????????????????????????????? #????? | | ??????????????????????????????????? > #????? | | ??????????????????????????????????? #????? | | ??????????????????????????????????? #????? | | ???????????????????????????????????? #????? | | ???????????????????????????????????? ?????? | | ???????????????????????############## #??????? | | ???????????????????????# # #??????? | | ???????????????????????# # #??????? | | ???????????????????????# """"""""" + #??????? | | ???????????????????????# @ Y # #??????? | | ???????????????????????# """"""""" # #??????? | | ???????????????????????# # #??????? | | ???????????????????????# """"""""" # #??????? | | ???????????????????????# # #??????? | | ???????????????????????# ] # #??????? | | ???????????????????????# "" "" # #?###### | | ???????????????????????# ""S"" # #? | | ???????????????????????# """" # #"" | | ???????????????????????#####+######## #"" | | ????????????????????????????????????# #?" | | | ?????????????????????????????######## #? ! | | ?????????????????????????? #?? | | ???????????????????????############## #?? | | ???????????????????????# # #??? | | ???????????????????????# # #??? = | | ???????????????????????# ** # #####+## | | ???????????????????????# ** # | | ???????????????????????# ! #^ | | ???????????????????????# = / "" """ "" | | ???????????????????????# # """ """ "" | | ???????????????????????# # "F """ "" | | ???????????????????????# # """ | | ???????????????????????# # "" """ "" | | ???????????????????????# # """ "" | +----------------------------------------------------+ Best States ------------- Heat Dissipation 121 Energy Generation 23 Energy Capacity 1600 Matter Stores 300 Matter Capacity 300 Sight Range 22 Robot Scan Range 16 Terrain Scan Range 16 Terrain Scan Density 110 Jamming Range 12 Armor Coverage 450 Resistance: KI 30 Core Shielding 30 Evasion (%) 62 Recoil Reduction 4 Defensive Hacking 12 Item Schematics ----------------- None Robot Schematics ------------------ None Fabricated ------------ Nothing Repaired ---------- Nothing Studied --------- None Alien Tech Used ----------------- None Achievements -------------- None Challenges ------------ None Game ------ Seed PlatingFactoryForcegen Manual? 0 Play Time 01:28:07 Cumulative 228.3 hours Start 2026.08.09 @ 07:57:41 End 2026.08.09 @ 09:27:39 Sessions 1 Manual Loads 0 Difficulty Rogue Special Mode None Game No. 133 Rogue 133 Adventurer 0 Explorer 0 Win Type - Total 5 Types 5/0/0/0/0/0/0/0/0/0 Lore% 77 Gallery% 67 Achievement% 58 Wizard Run 0 Options --------- Layout 1 ASCII 0 Keyboard 0 Movement Numpad Keybinds 0 Fullscreen 1 Font 24/Smallcaps Map View 50x35 Zoom Use 0% Tactical HUD 1 Map Filters NONE Filters NONE Steam 1 RUN: a0a397a1-81d0-47b4-ab9a-b092be934a18